[Event "Reykjavik Open 2024"]
[Site "Reykjavik"]
[Date "2024.03.16"]
[Round "3.33"]
[White "Fernandez, Daniel Howard"]
[Black "Soderstrom, Adrian"]
[Result "0-1"]
[ECO "D45"]
[WhiteElo "2532"]
[BlackElo "2288"]
[Annotator "TA"]
[PlyCount "176"]
[EventDate "2024.03.12"]
[EventCountry "ISL"]
[SourceTitle "playchess.com"]
[Source "ChessBase"]
[SourceQuality "1"]
[TimeControl "40/5400+30:1800+30"]

{[%evp 20,176,0,-40,-36,-34,-37,-19,-40,-35,-47,-42,-53,-49,-45,-117,-111,-103,-108,-112,-111,-109,-104,-93,-99,-201,-203,-200,-193,-142,-135,-145,-120,-119,-117,-129,-120,-146,-147,-182,-140,-139,0,-188,-192,-192,-192,-154,-133,-142,-131,-133,-130,-128,-120,-129,-123,-132,-132,-135,-116,-140,-117,-128,-125,-203,-133,-168,-130,-349,-338,-256,-356,-265,-244,-244,-244,-267,-317,-347,-354,-361,-336,-361,-361,-348,-348,-433,-345,-328,-137,-137,-149,-314,-137,-136,-131,-131,-8,-8,-8,-28,-42,-131,-131,-131,-131,-140,-131,-140,-131,-189,-189,-189,-189,-189,-189,-189,-189,-29969,-189,-189,0,0,0,0,0,0,0,0,0,0,0,0,0,0,0,0,0,0,0,0,0,0,0,-8,-8,-29976,-29977,-29976,-29978,-29979,-29980,-29979,0,-29992,0,-29980,-29981]} 1. Nf3 {[%emt 0:01:55]} d5 {[%emt 0:00:16]} 2. e3 {[%emt 0:02:43]} Nf6 {[%emt 0:00:09]} 3. c4 {[%emt 0:00:03]} e6 {[%emt 0:01:05]} 4. Nc3 {[%emt 0:00:12]} c6 {[%emt 0:02:19]} 5. b3 {[%emt 0:00:25]} Bd6 {[%emt 0:00:10]} 6. Bb2 {[%emt 0:03:29]} O-O {[%emt 0:00:24]} 7. d4 {[%emt 0:15:37]} Nbd7 {[%emt 0:01:42][%cal Bb8d7,Bd7e5,Be5f3][%mdl 32]} 8. Qc2 {[%emt 0:00:54]} e5 {[%emt 0:00:46]} 9. cxd5 {[%emt 0:05:06]} cxd5 {[%emt 0:00:27]} 10. dxe5 {[%emt 0:06:28]} Nxe5 {[%emt 0:00:03]} 11. Be2 {[%emt 0:00:27]} Nxf3+ $1 {[%emt 0:02:15]} 12. Bxf3 {[%emt 0:00:02][%cal Oe1g1] [#]} d4 $1 {[%emt 0:00:08]} 13. exd4 {[%emt 0:00:09]} (13. Ne4 Bb4+) 13... Re8+ {[%emt 0:00:33] Die Stellung ist ausgeglichen.} 14. Kf1 {[%emt 0:00:29]} Qa5 {[%emt 0:11:26][%mdl 1024] Schwarz hat Kompensation.} 15. h3 {[%emt 0:04:22]} Bf5 {[%emt 0:01:56]} 16. Qd2 {[%emt 0:00:04][%cal Og2g4]} Rac8 $36 {[%emt 0:02:37][%mdl 2048] Schwarz steht aktiver.} 17. g4 {[%emt 0:01:02]} (17. a3 $15) 17... Bb4 $1 $17 {[%emt 0:03:20] Schwarz steht deutlich aktiver.} 18. gxf5 {[%emt 0:00:09]} Rxc3 {[%emt 0:01:50]} (18... Bxc3 19. Bxc3 Qxc3 (19... Rxc3 20. Kg2 $16) 20. Qxc3 Rxc3 21. Kg2 $11) 19. Bxc3 {[%emt 0:01:05]} Bxc3 {[%emt 0:00:02]} 20. Qd1 {[%emt 0:00:09]} Bxa1 {[%emt 0:01:03]} (20... Re1+ 21. Qxe1 Bxe1 22. Rxe1 $15) (20... Qxf5 {sieht schärfer aus.} 21. Rc1 Re1+ 22. Qxe1 Bxe1 23. Kxe1 g6) 21. Qxa1 {[%emt 0:00:03]} Qxf5 {[%emt 0:01:12]} 22. Qd1 {[%emt 0:02:58]} (22. Qc3 $17) 22... Ne4 $19 {[%emt 0:05:29]} 23. Bxe4 {[%emt 0:03:19]} Rxe4 {[%emt 0:00:18][%mdl 4096] Endspiel. KQR-KQR} (23... Qxe4 24. Rg1) 24. Kg2 {[%emt 0:00:18]} Qg5+ {[%emt 0:00:52]} 25. Kh2 {[%emt 0:00:15]} Qf4+ {[%emt 0:00:24]} 26. Kg2 {[%emt 0:00:02]} Rxd4 {[%emt 0:00:17]} 27. Re1 {[%emt 0:01:24][%cal Re1e8]} g6 {[%emt 0:02:26]} (27... Qg5+ 28. Kh2 Qf4+ (28... Rxd1 29. Re8#) 29. Kg2 $15) 28. Qa1 {[%emt 0:00:16]} Qg5+ {[%emt 0:01:03]} 29. Kf1 {[%emt 0:01:29]} Qb5+ {[%emt 0:00:12]} 30. Kg1 {[%emt 0:00:23]} Qg5+ {[%emt 0:01:09]} (30... Qd5 $17 31. Re8+ Kg7) 31. Kf1 {[%emt 0:00:02]} Qd5 {[%emt 0:00:33]} 32. Kg1 {[%emt 0:00:30] Pariert Qh1+.} h5 {[%emt 0:02:48]} 33. Qc3 {[%emt 0:06:50]} Qd7 {[%emt 0:01:24]} 34. Qe3 {[%emt 0:05:57]} Kh7 {[%emt 0:01:51]} 35. Qe7 {[%emt 0:00:59]} Rd1 {[%emt 0:01:55]} (35... Qxh3 $2 36. Qxf7+ Kh6 37. Qf8+ (37. Qxb7 $2 Rg4+) 37... Kg5 38. Qc5+ Kh6 39. Qxd4 $18) 36. Kh2 {[%emt 0:02:31]} Rd2 {[%emt 0:01:41][%csl LRa2,LRf2]} 37. Qxd7 {[%emt 0:01:52]} Rxd7 $17 {[%emt 0:00:02] KR-KR} 38. Kg3 {[%emt 0:00:16]} Kg7 {[%emt 0:00:22]} 39. h4 {[%emt 0:00:17]} Kf6 {[%emt 0:00:08]} 40. Rc1 {[%emt 0:01:27]} Ke6 {[%emt 0:01:57]} 41. f3 {[%emt 0:30:32]} b6 {[%emt 0:32:46]} 42. a4 {[%emt 0:03:29]} (42. Rc8 $17 {ist eine bessere Verteidigung.}) 42... f6 {[%emt 0:05:11]} 43. Rc6+ {[%emt 0:01:43]} Ke5 {[%emt 0:00:11]} 44. a5 $2 {[%emt 0:00:59]} (44. b4 $17) 44... bxa5 $19 {[%emt 0:00:37]} 45. Ra6 {[%emt 0:00:05]} Rd5 {[%emt 0:00:29]} 46. Rxa7 {[%emt 0:00:21]} Kd4 {[%emt 0:00:42]} 47. Ra6 {[%emt 0:06:44]} Kc3 {[%emt 0:05:48]} 48. Rb6 {[%emt 0:00:02]} Rf5 {[%emt 0:00:22]} 49. Rb7 {[%emt 0:02:39]} Kb2 {[%emt 0:00:45]} 50. Rb6 {[%emt 0:00:15]} Ka3 {[%emt 0:00:02]} 51. Rb7 {[%emt 0:00:39]} g5 {[%emt 0:01:51]} 52. Rb8 {[%emt 0:02:43]} gxh4+ {[%emt 0:02:11]} 53. Kh2 {[%emt 0:01:00]} Kb2 {[%emt 0:02:04]} (53... Rxf3 54. Rb5 $15) 54. Rb7 {[%emt 0:00:13]} Kc3 {[%emt 0:00:32]} (54... Rxf3 55. Rb5 $15) (54... Re5 $19 {und Schwarz behält klar die Oberhand. Und ...f5 würde nun gewinnen.} 55. Kh3 f5 56. Kxh4 f4) 55. Rb6 $17 {[%emt 0:00:20]} Kc2 {[%emt 0:03:21][%cal Of5d5] ...Rd5! wäre nun fies.} (55... Rxf3 56. Rb5 $17) 56. Rb7 $2 {[%emt 0:01:03]} (56. f4 $17 {ist wohl besser.}) 56... h3 {[%emt 0:02:04]} (56... Rxf3 57. Rb5 $15) (56... Rg5 $19 {...Rd5 ist eine echte Drohung.} 57. Kh3 Rd5) 57. Rb6 {[%emt 0:01:34]} Rxf3 {[%emt 0:00:18]} 58. Rb5 {[%emt 0:00:08]} Rxb3 {[%emt 0:00:16]} (58... Kb2 $17) 59. Rxa5 $11 {[%emt 0:00:03]} Rf3 {[%emt 0:00:20] Droht stark ...f5.} (59... Kd3 $5) 60. Rxh5 {[%emt 0:00:25]} Kd3 {[%emt 0:00:22]} 61. Ra5 {[%emt 0:00:16]} (61. Rh4 $1 $15) 61... Ke4 $17 {[%emt 0:00:19]} 62. Ra4+ {[%emt 0:00:17]} Kf5 {[%emt 0:00:03]} 63. Rb4 {[%emt 0:01:11]} Kg5 {[%emt 0:00:03]} 64. Ra4 {[%emt 0:00:07]} f5 {[%emt 0:00:03]} 65. Rb4 {[%emt 0:00:12]} (65. Ra8 $17 {war nötig.}) 65... Re3 $19 {[%emt 0:00:34]} 66. Ra4 {[%emt 0:05:00]} f4 {[%emt 0:00:07]} 67. Ra8 {[%emt 0:00:44]} Kg4 {[%emt 0:00:02]} 68. Rg8+ {[%emt 0:00:08]} Kf3 {[%emt 0:00:03]} 69. Ra8 $2 {[%emt 0:03:52]} (69. Rf8 $19) 69... Re7 $2 {[%emt 0:00:50]} (69... Kf2 70. Ra1 Re1 71. Ra6 f3 72. Kxh3 Kg1 73. Rg6+ Kf1 74. Kg3 f2 75. Kf3 Rb1 76. Rf6 Rb3+ 77. Ke4 Ke2 78. Rf8 Re3+ (78... f1=R $2 79. Rh8 $19) 79. Kd4 Rf3 (79... f1=R 80. Rxf1 Kxf1 81. Kxe3 $11) (79... Re7 $2 80. Kc5 $19) 80. Re8+ Kd2 81. Ra8 Rd3+ (81... f1=R $2 82. Rh8 $19) 82. Ke4 f1=Q (82... f1=B 83. Ra2+ Kc1 84. Ra1+ Kb2 85. Rxf1 $11) 83. Ra2+ Kc3 84. Ra3+ Kc4 85. Rxd3 Qxd3+ 86. Ke5 Qf3 87. Ke6 Qf4 88. Kd7 Kd5 89. Ke7 Qg5+ 90. Kf7 Kd6 91. Kf8 Ke6 92. Ke8 Qg8#) 70. Ra6 {[%emt 0:01:11]} Kf2 $2 {[%emt 0:02:26]} (70... Re5 $19 {Zielt auf ...Re1 ab.} 71. Ra8 Re6) 71. Kxh3 $11 {[%emt 0:03:18]} f3 {[%emt 0:00:50]} 72. Ra2+ $1 {[%emt 0:00:56]} Re2 {[%emt 0:00:08]} (72... Kf1 $5 73. Kg3 $8 Re3 74. Rf2+ Kg1 $11) 73. Ra1 {[%emt 0:00:30]} Rd2 {[%emt 0:02:09]} 74. Kh2 $1 {[%emt 0:05:59]} Rd8 {[%emt 0:02:41][%cal Rd8h8]} 75. Ra2+ {[%emt 0:00:32]} Ke3 {[%emt 0:00:39]} 76. Ra3+ {[%emt 0:00:12]} Rd3 {[%emt 0:01:29]} 77. Ra1 $1 {[%emt 0:00:32]} Rd7 {[%emt 0:02:43]} 78. Ra3+ {[%emt 0:00:23]} Ke2 {[%emt 0:00:09]} 79. Ra2+ {[%emt 0:00:28]} Rd2 {[%emt 0:00:02]} 80. Ra1 {[%emt 0:00:19]} Kf2 {[%emt 0:00:51]} (80... Rd1 $5 81. Ra2+ $8 Ke3 82. Ra3+ Ke2 $11) 81. Rc1 {[%emt 0:01:23]} Rd8 {[%emt 0:07:52][%cal Rd8h8]} (81... Rd6 $5 82. Rc2+ $8 Ke1 $11) 82. Rc2+ {[%emt 0:00:12]} Ke3 {[%emt 0:00:08] ( -> ...Rd2+)} (82... Ke1 $5 83. Kg3 $8 f2 84. Rc1+ Ke2 85. Rc2+ Ke3 $11) 83. Rc3+ $2 {[%emt 0:00:24][%mdl 8192]} (83. Kg3 $11) 83... Ke2 $1 {[%emt 0:00:18]} 84. Rc2+ {[%emt 0:00:21]} Rd2 {[%emt 0:02:43]} 85. Rc1 {[%emt 0:00:26]} Rd1 $1 {[%emt 0:00:09]} 86. Rc2+ {[%emt 0:09:44] [#]} Kf1 $2 {[%emt 0:00:02]} (86... Kd3 $1 {setzt Matt} 87. Rc8 f2 88. Rd8+ Kc2 (88... Ke2 {führt zum Matt.} 89. Re8+ Kd2 90. Rd8+ Kc2 91. Rc8+ Kb3 92. Rb8+ Kc4 93. Rc8+ Kb5 94. Rb8+ Kc6 95. Rc8+ Kd7 96. Rf8 f1=Q 97. Rxf1 Rxf1 98. Kg3 Ke6 99. Kg4 Ke5 100. Kg3 Kf5 101. Kg2 Rf4 102. Kh3 Rf3+ 103. Kh2 Kg4 104. Kg2 Rf8 105. Kh1 Kh3 106. Kg1 Kg3 107. Kh1 Rf1#) 89. Rc8+ Kb3 90. Rb8+ Kc4 91. Rc8+ Kb5 (91... Kd3 92. Rd8+ Kc2 93. Rc8+ Kb3 94. Rb8+ Kc4 95. Rc8+ Kb5 96. Rf8 f1=Q 97. Rxf1 Rxf1 98. Kg3 Kc4 99. Kg2 Rf8 100. Kg3 Kd5 101. Kg4 Ke5 102. Kg3 Ke4 103. Kg4 Rg8+ 104. Kh5 Kf5 105. Kh4 Rg6 106. Kh3 Kf4 107. Kh2 Kf3 108. Kh1 Kf2 109. Kh2 Rh6#) 92. Rf8 f1=Q (92... f1=R 93. Rc8 $19) 93. Rxf1 Rxf1 94. Kg3 Kc5 95. Kh2 Kd5 96. Kg3 Ke4 97. Kg4 Rg1+ 98. Kh4 Kf5 99. Kh3 Kf4 100. Kh2 Rg3 101. Kh1 Kf3 102. Kh2 Kf2 103. Kh1 Rh3#) 87. Rc1 $2 {[%emt 0:00:02][%mdl 8192]} Ke2 {[%emt 0:00:01]} 88. Rc2+ {[%emt 0:00:14] [#]} Kd3 $1 {[%emt 0:00:12] Gewichteter Fehlerwert: Weiß=0.20 (präzise) /Schwarz=0.21 (präzise) .  Verlustzug:     	Weiß=3     	---        Gewinn verpasst:   	---       	Schwarz=2     Fehler:       	Weiß=6     	Schwarz=3     Ungenau:       	---       	Schwarz=1     OK:         	Weiß=25    	Schwarz=32    Bester:       	Weiß=11    	Schwarz=2     Stark:        	Weiß=3     	Schwarz=2     Brilliant:      	---       	Schwarz=1} 0-1

[Event "Reykjavik Open 2024"]
[Site "Reykjavik"]
[Date "2024.03.16"]
[Round "3.34"]
[White "Yilmazyerli, Mert"]
[Black "Manish Anto Cristiano F"]
[Result "1/2-1/2"]
[ECO "D45"]
[WhiteElo "2526"]
[BlackElo "2286"]
[Annotator "TA"]
[PlyCount "48"]
[EventDate "2024.03.12"]
[EventCountry "ISL"]
[SourceTitle "playchess.com"]
[Source "ChessBase"]
[SourceQuality "1"]
[TimeControl "40/5400+30:1800+30"]

{[%evp 23,48,13,14,16,15,18,10,16,15,12,22,13,31,30,39,33,32,14,19,14,36,5,8,3,6,6,18]} 1. Nf3 {[%emt 0:01:39]} Nf6 {[%emt 0:00:14]} 2. c4 {[%emt 0:00:41]} e6 {[%emt 0:00:54]} 3. Nc3 {[%emt 0:00:41]} d5 {[%emt 0:00:19]} 4. d4 {[%emt 0:00:15]} c6 {[%emt 0:00:40]} 5. e3 {[%emt 0:01:13]} Nbd7 {[%emt 0:00:22]} 6. Qc2 {[%emt 0:02:32]} Bd6 {[%emt 0:00:37]} 7. Be2 {[%emt 0:00:25]} O-O {[%emt 0:00:35]} 8. b3 {[%emt 0:03:22]} e5 {[%emt 0:00:28]} 9. cxd5 {[%emt 0:01:31]} cxd5 {[%emt 0:00:21]} 10. Nb5 {[%emt 0:01:39]} Bb4+ {[%emt 0:00:13]} 11. Bd2 {[%emt 0:00:05]} Bxd2+ {[%emt 0:00:19]} 12. Nxd2 {[%emt 0:00:48]} a6 {[%emt 0:06:47]} 13. dxe5 {[%emt 0:01:31]} Nxe5 {[%emt 0:00:53]} 14. Nd4 {[%emt 0:00:33]} Bg4 {[%emt 0:00:19]} 15. Bxg4 {[%emt 0:05:58]} Nfxg4 {[%emt 0:00:13][%cal Bf6g4,Bg4e5,Be5c6][%mdl 32]} 16. O-O {[%emt 0:03:46]} Rc8 {[%emt 0:04:12]} 17. Qd1 {[%emt 0:07:59]} g6 {[%emt 0:06:02]} 18. N2f3 {[%emt 0:05:32]} Qd6 {[%emt 0:04:06]} 19. Nxe5 {[%emt 0:01:22]} Nxe5 {[%emt 0:00:14]} 20. Qd2 {[%emt 0:01:58]} Rc7 {[%emt 0:02:35]} 21. Rac1 {[%emt 0:03:48]} Rfc8 {[%emt 0:02:08]} 22. h3 {[%emt 0:03:14]} Rxc1 {[%emt 0:01:21] Die Stellung ist ausgeglichen.} 23. Rxc1 {[%emt 0:00:05]} Rxc1+ {[%emt 0:00:08]} 24. Qxc1 {[%emt 0:00:03]} Nc6 {[%emt 0:01:00] Gewichteter Fehlerwert: Weiß=0.06 (makellos) /Schwarz=0.07 (makellos) .  Ungenau:       	Weiß=1     	---        OK:         	Weiß=4     	Schwarz=3     Bester:       	---       	Schwarz=1} 1/2-1/2

[Event "Reykjavik Open 2024"]
[Site "Reykjavik"]
[Date "2024.03.16"]
[Round "3.35"]
[White "Unzicker, Ferdinand"]
[Black "Krzyzanowski, Marcin"]
[Result "0-1"]
[ECO "A29"]
[WhiteElo "2284"]
[BlackElo "2524"]
[Annotator "TA"]
[PlyCount "100"]
[EventDate "2024.03.12"]
[EventCountry "ISL"]
[SourceTitle "playchess.com"]
[Source "ChessBase"]
[SourceQuality "1"]
[TimeControl "40/5400+30:1800+30"]

{[%evp 19,100,13,11,0,0,6,0,0,0,0,0,0,0,0,0,0,0,0,18,20,15,31,48,42,41,23,24,27,37,17,20,10,6,9,17,19,20,16,17,14,27,18,20,20,19,18,77,78,72,51,50,52,64,52,69,73,66,64,65,39,33,43,35,7,59,0,2,0,0,0,0,0,11,-273,-260,-701,-686,-953,-905,-858,-699,-29985,-29986]} 1. c4 {[%emt 0:00:02]} e5 {[%emt 0:00:08]} 2. g3 {[%emt 0:00:18]} Nf6 {[%emt 0:00:40]} 3. Bg2 {[%emt 0:00:16]} d5 {[%emt 0:00:06]} 4. cxd5 {[%emt 0:00:08]} Nxd5 {[%emt 0:00:06]} 5. Nc3 {[%emt 0:00:23]} Nb6 {[%emt 0:00:11]} 6. Nf3 {[%emt 0:00:24]} Nc6 {[%emt 0:00:06]} 7. O-O {[%emt 0:00:25]} Be7 {[%emt 0:00:22]} 8. d3 {[%emt 0:00:50]} O-O {[%emt 0:00:06]} 9. Be3 {[%emt 0:00:42]} Re8 {[%emt 0:01:09]} 10. Rc1 {[%emt 0:05:13]} Bf8 {[%emt 0:00:51]} 11. d4 {[%emt 0:09:50]} exd4 {[%emt 0:05:04]} 12. Nxd4 {[%emt 0:00:34]} Nxd4 {[%emt 0:00:35]} 13. Bxd4 {[%emt 0:00:36] The position is equal.} c6 {[%emt 0:00:27]} 14. b3 {[%emt 0:02:31]} Bg4 {[%emt 0:01:59]} 15. f3 {[%emt 0:03:43]} Be6 {[%emt 0:00:43]} 16. e4 {[%emt 0:00:08]} Ba3 {[%emt 0:02:09]} 17. Rc2 {[%emt 0:02:30]} Qe7 {[%emt 0:00:18]} 18. Qa1 {[%emt 0:01:37][%cal Od4g7]} Bc5 {[%emt 0:05:22]} 19. Ne2 {[%emt 0:03:17]} Bxd4+ {[%emt 0:00:00]} 20. Nxd4 {[%emt 0:00:10]} a5 {[%emt 0:00:00]} 21. Qc3 {[%emt 0:06:09]} Qb4 {[%emt 0:03:04]} 22. Nxe6 {[%emt 0:07:18]} Qxc3 {[%emt 0:01:32]} 23. Rxc3 {[%emt 0:00:11]} fxe6 {[%emt 0:01:40]} 24. Rd1 {[%emt 0:00:33]} Red8 {[%emt 0:00:44]} 25. Rcd3 {[%emt 0:00:22]} Rxd3 {[%emt 0:00:08]} 26. Rxd3 $11 {[%emt 0:00:06][%mdl 4096] Endgame. KRB-KRN} a4 {[%emt 0:00:55]} 27. b4 {[%emt 0:05:30]} Kf7 {[%emt 0:01:17]} 28. Kf2 {[%emt 0:01:09]} Ke7 {[%emt 0:00:42]} 29. Bf1 {[%emt 0:08:56]} Nd7 {[%emt 0:06:03]} 30. Rc3 {[%emt 0:06:32]} a3 {[%emt 0:03:32]} 31. Ke3 {[%emt 0:04:44]} Ra4 {[%emt 0:03:06]} 32. Rb3 {[%emt 0:01:27]} c5 {[%emt 0:06:36] [#]} (32... g5 $11) 33. bxc5 $1 $16 {[%emt 0:00:24]} (33. Bb5 Rxb4 34. Rxb4 cxb4 $19) 33... Nxc5 {[%emt 0:00:05]} 34. Rb5 {[%emt 0:11:26]} Kd6 {[%emt 0:00:47] [#]} 35. e5+ $1 {[%emt 0:01:37]} Kc6 {[%emt 0:01:51]} (35... Kd5 36. f4) 36. Rb1 {[%emt 0:00:50]} Ra5 {[%emt 0:00:35] Prevents Bb5+.} 37. f4 {[%emt 0:02:09]} b5 {[%emt 0:01:05]} 38. Kd4 {[%emt 0:03:40]} Kb6 {[%emt 0:02:52]} 39. Kc3 {[%emt 0:00:54]} g6 {[%emt 0:02:18]} 40. Be2 {[%emt 0:00:43]} Ne4+ {[%emt 0:04:41]} 41. Kc2 {[%emt 0:38:40]} Nc5 {[%emt 0:36:31]} (41... Kc5 $11) 42. Rb4 {[%emt 0:00:53]} (42. Bc4 $14) 42... Na6 $1 $11 {[%emt 0:02:42]} 43. Rd4 {[%emt 0:00:00]} Kc5 {[%emt 0:00:00]} 44. Rd6 {[%emt 0:00:00][%cal Oc2b3]} Nb4+ {[%emt 0:00:00]} 45. Kb1 {[%emt 0:00:00][%cal Oe2g4]} Nd5 {[%emt 0:00:00]} 46. Kc2 {[%emt 0:00:00][%mdl 8192] [#] Repels Nc3. Loses the game.} (46. Bg4 $1 $11 {and White stays safe.} Nc3+ 47. Ka1) 46... Ra4 $1 $19 {[%emt 0:00:00]} ({Not} 46... Nb4+ 47. Kb1 (47. Kb3 Nc6 $15) 47... Ra6 48. Rd7 $11) 47. Bg4 $2 {[%emt 0:01:50]} (47. h4) 47... Ne3+ {[%emt 0:00:00]} 48. Kb3 {[%emt 0:00:05]} Nxg4 {[%emt 0:00:00]} 49. Rxe6 {[%emt 0:00:02]} Ne3 {[%emt 0:00:00]} 50. Re7 {[%emt 0:00:16]} Rb4+ {[%emt 0:00:00] Weighted Error Value: White=0.52/Black=0.13 (very precise) .  Loses game:     	White=1     	---        Mistake:       	White=2     	Black=2      Inaccurate:     	White=3     	---        OK:         	White=12    	Black=15     Best:        	---       	Black=2      Strong:       	White=1     	Black=2} 0-1